[Event "Titled Tuesday Blitz February 21 Late 2023"]
[White "Gurevich, Ilya"]
[Black "Przybylski, Wojciech"]
[WhiteFideId "2000628"]
[BlackFideId "1117599"]
[WhiteElo "2586"]
[BlackElo "2321"]
[Result "0-1"]
[Round "03"]
[TimeControl "180+2"]
[Date "2023.02.21"]
[WhiteClock "0:00:03"]
[BlackClock "0:00:02"]

1. d4 {[%clk 0:03:00]}  d5 {[%clk 0:02:58]} 2. c4 {[%clk 0:03:00]}  e6 {[%clk 0:02:58]} 3. Nf3 {[%clk 0:03:00]}  Nf6 {[%clk 0:02:57]} 4. Nc3 {[%clk 0:03:01]}  c6 {[%clk 0:02:57]} 5. Bg5 {[%clk 0:03:01]}  h6 {[%clk 0:02:57]} 6. Bxf6 {[%clk 0:03:01]}  Qxf6 {[%clk 0:02:57]} 7. e3 {[%clk 0:03:02]}  Nd7 {[%clk 0:02:57]} 8. Rc1 {[%clk 0:03:03]}  g6 {[%clk 0:02:57]} 9. Bd3 {[%clk 0:03:03]}  Bg7 {[%clk 0:02:56]} 10. O-O {[%clk 0:03:04]}  O-O {[%clk 0:02:56]} 11. Qe2 {[%clk 0:03:03]}  dxc4 {[%clk 0:02:51]} 12. Bxc4 {[%clk 0:03:03]}  e5 {[%clk 0:02:50]} 13. d5 {[%clk 0:03:03]}  Nb6 {[%clk 0:02:49]} 14. Bb3 {[%clk 0:03:02]}  Bg4 {[%clk 0:02:43]} 15. dxc6 {[%clk 0:02:55]}  bxc6 {[%clk 0:02:37]} 16. Ne4 {[%clk 0:02:36]}  Qf5 {[%clk 0:02:35]} 17. Nd6 {[%clk 0:02:25]}  Qh5 {[%clk 0:02:26]} 18. Rxc6 {[%clk 0:02:12]}  Rad8 {[%clk 0:02:21]} 19. e4 {[%clk 0:02:07]}  Rd7 {[%clk 0:02:09]} 20. Rfc1 {[%clk 0:01:52]}  Rfd8 {[%clk 0:01:59]} 21. Nb5 {[%clk 0:01:11]}  Rd3 {[%clk 0:00:59]} 22. R6c3 {[%clk 0:00:59]}  Bxf3 {[%clk 0:00:55]} 23. gxf3 {[%clk 0:00:58]}  Qg5+ {[%clk 0:00:37]} 24. Kf1 {[%clk 0:00:55]}  Rd2 {[%clk 0:00:36]} 25. Qe3 {[%clk 0:00:20]}  Qh4 {[%clk 0:00:35]} 26. R3c2 {[%clk 0:00:18]}  R2d3 {[%clk 0:00:31]} 27. Qe1 {[%clk 0:00:13]}  Qxh2 {[%clk 0:00:30]} 28. Ke2 {[%clk 0:00:13]}  Qh3 {[%clk 0:00:20]} 29. Qh1 {[%clk 0:00:11]}  Qd7 {[%clk 0:00:17]} 30. Nc3 {[%clk 0:00:08]}  h5 {[%clk 0:00:14]} 31. Nd5 {[%clk 0:00:06]}  Qb5 {[%clk 0:00:06]} 32. Ke1 {[%clk 0:00:04]}  Nxd5 {[%clk 0:00:03]} 33. Bxd5 {[%clk 0:00:05]}  Rd7 {[%clk 0:00:03]} 34. Bc4 {[%clk 0:00:04]}  Qa5+ {[%clk 0:00:03]} 35. Kf1 {[%clk 0:00:04]}  Rd2 {[%clk 0:00:03]} 36. Kg2 {[%clk 0:00:03]}  Rxc2 {[%clk 0:00:03]} 37. Rxc2 {[%clk 0:00:04]}  Kh7 {[%clk 0:00:03]} 38. Qc1 {[%clk 0:00:03]}  Qd8 {[%clk 0:00:03]} 39. b3 {[%clk 0:00:03]}  Bh6 {[%clk 0:00:03]} 40. Qb2 {[%clk 0:00:03]}  Qg5+ {[%clk 0:00:03]} 41. Kf1 {[%clk 0:00:02]}  h4 {[%clk 0:00:03]} 42. Ke2 {[%clk 0:00:02]}  h3 {[%clk 0:00:03]} 43. Rc1 {[%clk 0:00:01]}  h2 {[%clk 0:00:03]} 44. Rh1 {[%clk 0:00:02]}  Qg1 {[%clk 0:00:03]} 45. Qb1 {[%clk 0:00:01]}  Qxb1 {[%clk 0:00:03]} 46. Rxb1 {[%clk 0:00:02]}  Bf4 {[%clk 0:00:03]} 47. Rh1 {[%clk 0:00:02]}  Kg7 {[%clk 0:00:04]} 48. Kf1 {[%clk 0:00:03]}  f5 {[%clk 0:00:04]} 49. exf5 {[%clk 0:00:02]}  gxf5 {[%clk 0:00:04]} 50. Kg2 {[%clk 0:00:03]}  Kf6 {[%clk 0:00:03]} 51. Rb1 {[%clk 0:00:02]}  Rg7+ {[%clk 0:00:03]} 52. Kh1 {[%clk 0:00:03]}  e4 {[%clk 0:00:02]} 53. fxe4 {[%clk 0:00:03]}  fxe4 {[%clk 0:00:02]} 54. Bd5 {[%clk 0:00:03]}  Ke5 {[%clk 0:00:02]} 55. Rd1 {[%clk 0:00:03]}  Rd7 {[%clk 0:00:02]} 56. f3 {[%clk 0:00:01]}  Rxd5 {[%clk 0:00:02]} 57. Rf1 {[%clk 0:00:01]}  e3 {[%clk 0:00:01]} 58. a4 {[%clk 0:00:01]}  Rd3 {[%clk 0:00:01]} 59. a5 {[%clk 0:00:01]}  Rxb3 {[%clk 0:00:01]} 60. a6 {[%clk 0:00:02]}  Ra3 {[%clk 0:00:01]} 61. Re1 {[%clk 0:00:01]}  Ra5 {[%clk 0:00:01]} 62. Re2 {[%clk 0:00:02]}  Rxa6 {[%clk 0:00:02]} 63. Ra2 {[%clk 0:00:03]}  Rb6 {[%clk 0:00:01]} 64. Re2 {[%clk 0:00:04]}  Kf6 {[%clk 0:00:01]} 65. Re1 {[%clk 0:00:04]}  Rb2 {[%clk 0:00:02]} 66. Re2 {[%clk 0:00:04]}  Rb1+ {[%clk 0:00:02]} 67. Kg2 {[%clk 0:00:03]}  Rc1 {[%clk 0:00:02]} 0-1


[Site "https://www.chess.com"]

[Event "Titled Tuesday Blitz February 21 Late 2023"]
[White "Domingo Nunez, Ruben"]
[Black "Jarocka, Liwia"]
[WhiteFideId "22245570"]
[BlackFideId "21807558"]
[WhiteElo "2416"]
[BlackElo "2225"]
[Result "1-0"]
[Round "03"]
[TimeControl "180+2"]
[Date "2023.02.21"]
[WhiteClock "0:01:51"]
[BlackClock "0:00:34"]

1. e4 {[%clk 0:03:00]}  c5 {[%clk 0:02:58]} 2. d4 {[%clk 0:03:01]}  cxd4 {[%clk 0:02:58]} 3. c3 {[%clk 0:03:02]}  dxc3 {[%clk 0:02:57]} 4. Nxc3 {[%clk 0:03:03]}  Nc6 {[%clk 0:02:57]} 5. Nf3 {[%clk 0:03:04]}  e6 {[%clk 0:02:57]} 6. Bc4 {[%clk 0:03:04]}  Bb4 {[%clk 0:02:57]} 7. O-O {[%clk 0:03:05]}  Nge7 {[%clk 0:02:57]} 8. Nb5 {[%clk 0:03:05]}  O-O {[%clk 0:02:42]} 9. Bf4 {[%clk 0:02:59]}  d5 {[%clk 0:02:39]} 10. Nc7 {[%clk 0:02:52]}  Ng6 {[%clk 0:02:10]} 11. Bg3 {[%clk 0:02:46]}  Rb8 {[%clk 0:01:10]} 12. exd5 {[%clk 0:02:43]}  exd5 {[%clk 0:01:04]} 13. Nxd5 {[%clk 0:02:39]}  Bd6 {[%clk 0:00:52]} 14. Nf6+ {[%clk 0:02:39]}  Qxf6 {[%clk 0:00:51]} 15. Qxd6 {[%clk 0:02:30]}  Be6 {[%clk 0:00:47]} 16. Bxe6 {[%clk 0:02:28]}  fxe6 {[%clk 0:00:48]} 17. Qd7 {[%clk 0:02:25]}  Rbc8 {[%clk 0:00:41]} 18. Qxb7 {[%clk 0:02:24]}  e5 {[%clk 0:00:41]} 19. Rfe1 {[%clk 0:02:23]}  Rfe8 {[%clk 0:00:40]} 20. Rac1 {[%clk 0:02:23]}  Kh8 {[%clk 0:00:37]} 21. h4 {[%clk 0:01:53]}  e4 {[%clk 0:00:34]} 22. Rxe4 {[%clk 0:01:51]} 1-0


[Site "https://www.chess.com"]

[Event "Titled Tuesday Blitz February 21 Late 2023"]
[White "Roman, Rodrigo"]
[Black "Antonios, Johnny"]
[WhiteFideId "3701220"]
[BlackFideId "5300843"]
[WhiteElo "2058"]
[BlackElo "2269"]
[Result "0-1"]
[Round "03"]
[TimeControl "180+2"]
[Date "2023.02.21"]
[WhiteClock "0:00:22"]
[BlackClock "0:01:46"]

1. e4 {[%clk 0:03:00]}  e5 {[%clk 0:02:59]} 2. Nf3 {[%clk 0:03:00]}  d6 {[%clk 0:03:00]} 3. d4 {[%clk 0:02:59]}  Nf6 {[%clk 0:03:00]} 4. Nc3 {[%clk 0:02:58]}  Nbd7 {[%clk 0:03:00]} 5. Rg1 {[%clk 0:02:58]}  c6 {[%clk 0:02:52]} 6. g4 {[%clk 0:02:57]}  g6 {[%clk 0:02:50]} 7. Be3 {[%clk 0:02:57]}  Qa5 {[%clk 0:02:45]} 8. Qd2 {[%clk 0:02:52]}  Bg7 {[%clk 0:02:44]} 9. dxe5 {[%clk 0:02:40]}  Nxe5 {[%clk 0:02:42]} 10. Nxe5 {[%clk 0:02:40]}  dxe5 {[%clk 0:02:42]} 11. g5 {[%clk 0:02:27]}  Ng4 {[%clk 0:02:37]} 12. h3 {[%clk 0:02:22]}  Nxe3 {[%clk 0:02:36]} 13. Qxe3 {[%clk 0:02:23]}  h6 {[%clk 0:02:33]} 14. h4 {[%clk 0:02:08]}  hxg5 {[%clk 0:02:33]} 15. hxg5 {[%clk 0:02:09]}  Qb6 {[%clk 0:02:27]} 16. Qxb6 {[%clk 0:02:05]}  axb6 {[%clk 0:02:27]} 17. O-O-O {[%clk 0:02:04]}  b5 {[%clk 0:02:26]} 18. a3 {[%clk 0:02:03]}  Be6 {[%clk 0:02:26]} 19. f3 {[%clk 0:01:59]}  Bf8 {[%clk 0:02:25]} 20. Nb1 {[%clk 0:01:12]}  Bc5 {[%clk 0:02:24]} 21. Rg2 {[%clk 0:01:08]}  Rh5 {[%clk 0:02:22]} 22. Re1 {[%clk 0:01:00]}  Ke7 {[%clk 0:02:03]} 23. b4 {[%clk 0:00:49]}  Bb6 {[%clk 0:02:02]} 24. Kb2 {[%clk 0:00:43]}  Rah8 {[%clk 0:01:49]} 25. Nd2 {[%clk 0:00:37]}  Bh3 {[%clk 0:01:48]} 26. Rg3 {[%clk 0:00:31]}  Bf2 {[%clk 0:01:46]} 27. Rxh3 {[%clk 0:00:24]}  Rxh3 {[%clk 0:01:46]} 28. Bxh3 {[%clk 0:00:22]}  Bxe1 {[%clk 0:01:46]} 0-1


[Site "https://www.chess.com"]

[Event "Titled Tuesday Blitz February 21 Late 2023"]
[White "Yeritsyan, Hayk"]
[Black "Fajdetic, Hrvoje"]
[WhiteFideId "13307320"]
[BlackFideId "14501945"]
[WhiteElo "2241"]
[BlackElo "2151"]
[Result "1-0"]
[Round "03"]
[TimeControl "180+2"]
[Date "2023.02.21"]
[WhiteClock "0:00:54"]
[BlackClock "0:00:01"]

1. d4 {[%clk 0:03:00]}  Nf6 {[%clk 0:02:55]} 2. Nf3 {[%clk 0:03:01]}  b6 {[%clk 0:02:54]} 3. Bf4 {[%clk 0:03:01]}  Bb7 {[%clk 0:02:54]} 4. e3 {[%clk 0:03:01]}  e6 {[%clk 0:02:55]} 5. Bd3 {[%clk 0:03:01]}  Ne4 {[%clk 0:02:51]} 6. Nbd2 {[%clk 0:03:00]}  f5 {[%clk 0:02:51]} 7. h3 {[%clk 0:02:59]}  Bd6 {[%clk 0:02:50]} 8. Bxd6 {[%clk 0:02:59]}  cxd6 {[%clk 0:02:51]} 9. O-O {[%clk 0:02:59]}  O-O {[%clk 0:02:49]} 10. c4 {[%clk 0:02:58]}  Nxd2 {[%clk 0:02:40]} 11. Nxd2 {[%clk 0:02:57]}  Qg5 {[%clk 0:02:27]} 12. Nf3 {[%clk 0:02:49]}  Qh5 {[%clk 0:02:24]} 13. Be2 {[%clk 0:02:45]}  Qh6 {[%clk 0:02:11]} 14. Nd2 {[%clk 0:02:44]}  Nc6 {[%clk 0:01:53]} 15. Bf3 {[%clk 0:02:43]}  e5 {[%clk 0:01:43]} 16. Bd5+ {[%clk 0:02:35]}  Kh8 {[%clk 0:01:43]} 17. Nf3 {[%clk 0:02:36]}  e4 {[%clk 0:01:40]} 18. Nd2 {[%clk 0:02:36]}  Na5 {[%clk 0:01:16]} 19. b4 {[%clk 0:02:14]}  Bxd5 {[%clk 0:01:14]} 20. cxd5 {[%clk 0:02:15]}  Nb7 {[%clk 0:01:13]} 21. Rc1 {[%clk 0:02:07]}  f4 {[%clk 0:00:39]} 22. exf4 {[%clk 0:01:47]}  Qxf4 {[%clk 0:00:37]} 23. Qe2 {[%clk 0:01:39]}  Rac8 {[%clk 0:00:23]} 24. Qe3 {[%clk 0:01:31]}  Qxe3 {[%clk 0:00:14]} 25. fxe3 {[%clk 0:01:32]}  Rxf1+ {[%clk 0:00:13]} 26. Rxf1 {[%clk 0:01:32]}  Kg8 {[%clk 0:00:12]} 27. Nxe4 {[%clk 0:01:25]}  a5 {[%clk 0:00:11]} 28. bxa5 {[%clk 0:01:23]}  Nxa5 {[%clk 0:00:10]} 29. Nxd6 {[%clk 0:01:23]}  Rc2 {[%clk 0:00:07]} 30. Rf2 {[%clk 0:01:20]}  Rc3 {[%clk 0:00:06]} 31. e4 {[%clk 0:01:20]}  Rd3 {[%clk 0:00:06]} 32. Rb2 {[%clk 0:01:16]}  Rxd4 {[%clk 0:00:02]} 33. Rxb6 {[%clk 0:01:16]}  h5 {[%clk 0:00:02]} 34. Ra6 {[%clk 0:01:12]}  Nc4 {[%clk 0:00:02]} 35. Nxc4 {[%clk 0:01:11]}  Rxc4 {[%clk 0:00:03]} 36. e5 {[%clk 0:01:11]}  Re4 {[%clk 0:00:03]} 37. e6 {[%clk 0:01:11]}  dxe6 {[%clk 0:00:04]} 38. Rxe6 {[%clk 0:01:08]}  Ra4 {[%clk 0:00:04]} 39. Re2 {[%clk 0:01:07]}  Rd4 {[%clk 0:00:04]} 40. Re8+ {[%clk 0:01:05]}  Kf7 {[%clk 0:00:04]} 41. Ra8 {[%clk 0:00:55]}  Rxd5 {[%clk 0:00:03]} 42. a4 {[%clk 0:00:55]}  Rd2 {[%clk 0:00:03]} 43. a5 {[%clk 0:00:55]}  Ra2 {[%clk 0:00:04]} 44. a6 {[%clk 0:00:55]}  h4 {[%clk 0:00:04]} 45. a7 {[%clk 0:00:55]}  Kg6 {[%clk 0:00:04]} 46. Kf1 {[%clk 0:00:54]}  Kg5 {[%clk 0:00:04]} 47. Ke1 {[%clk 0:00:55]}  g6 {[%clk 0:00:01]} 48. Kd1 {[%clk 0:00:54]} 1-0


[Site "https://www.chess.com"]

[Event "Titled Tuesday Blitz February 21 Late 2023"]
[White "Hernandez Sanchez, Elvis De La Caridad"]
[Black "Eckert, Doug"]
[WhiteFideId "6400353"]
[BlackFideId "2001993"]
[WhiteElo "2243"]
[BlackElo "2075"]
[Result "1-0"]
[Round "03"]
[TimeControl "180+2"]
[Date "2023.02.21"]
[WhiteClock "0:00:31"]
[BlackClock "0:00:15"]

1. e4 {[%clk 0:03:00]}  e5 {[%clk 0:02:59]} 2. Nf3 {[%clk 0:03:00]}  Nc6 {[%clk 0:02:59]} 3. Bc4 {[%clk 0:03:00]}  Bc5 {[%clk 0:02:59]} 4. d3 {[%clk 0:02:59]}  Nf6 {[%clk 0:02:56]} 5. Bg5 {[%clk 0:02:56]}  h6 {[%clk 0:02:54]} 6. Bh4 {[%clk 0:02:56]}  g5 {[%clk 0:02:54]} 7. Bg3 {[%clk 0:02:55]}  d6 {[%clk 0:02:49]} 8. Nc3 {[%clk 0:02:49]}  Be6 {[%clk 0:02:46]} 9. Nd5 {[%clk 0:02:40]}  Bxd5 {[%clk 0:02:37]} 10. exd5 {[%clk 0:02:39]}  Nd4 {[%clk 0:02:26]} 11. Nxd4 {[%clk 0:02:35]}  Bxd4 {[%clk 0:02:25]} 12. Bb5+ {[%clk 0:02:33]}  Kf8 {[%clk 0:02:21]} 13. c3 {[%clk 0:02:26]}  Bb6 {[%clk 0:02:20]} 14. Bc4 {[%clk 0:02:11]}  Kg7 {[%clk 0:02:15]} 15. Qe2 {[%clk 0:02:05]}  c6 {[%clk 0:02:09]} 16. dxc6 {[%clk 0:02:03]}  bxc6 {[%clk 0:02:09]} 17. O-O-O {[%clk 0:02:02]}  Qe7 {[%clk 0:01:28]} 18. Kb1 {[%clk 0:01:54]}  Nd7 {[%clk 0:01:12]} 19. h4 {[%clk 0:01:49]}  Rae8 {[%clk 0:01:09]} 20. Bb3 {[%clk 0:01:42]}  d5 {[%clk 0:01:03]} 21. Bc2 {[%clk 0:01:40]}  Qf6 {[%clk 0:00:53]} 22. hxg5 {[%clk 0:01:36]}  hxg5 {[%clk 0:00:53]} 23. Qg4 {[%clk 0:01:33]}  Qe7 {[%clk 0:00:29]} 24. Qf5 {[%clk 0:01:08]}  Rxh1 {[%clk 0:00:29]} 25. Rxh1 {[%clk 0:01:07]}  Rh8 {[%clk 0:00:29]} 26. Re1 {[%clk 0:00:55]}  Re8 {[%clk 0:00:25]} 27. f3 {[%clk 0:00:54]}  f6 {[%clk 0:00:24]} 28. d4 {[%clk 0:00:53]}  Qe6 {[%clk 0:00:19]} 29. Qg6+ {[%clk 0:00:34]}  Kf8 {[%clk 0:00:16]} 30. Bf5 {[%clk 0:00:33]}  Qe7 {[%clk 0:00:15]} 31. Rh1 {[%clk 0:00:31]} 1-0


[Site "https://www.chess.com"]

[Event "Titled Tuesday Blitz February 21 Late 2023"]
[White "Garrido, Denis"]
[Black "Prydun, Andriy"]
[WhiteFideId "601217"]
[BlackFideId "14145898"]
[WhiteElo "2205"]
[BlackElo "2134"]
[Result "0-1"]
[Round "03"]
[TimeControl "180+2"]
[Date "2023.02.21"]
[WhiteClock "0:00:02"]
[BlackClock "0:00:03"]

1. c4 {[%clk 0:02:55]}  Nf6 {[%clk 0:01:54]} 2. Nc3 {[%clk 0:02:47]}  c5 {[%clk 0:01:54]} 3. Nf3 {[%clk 0:02:46]}  Nc6 {[%clk 0:01:54]} 4. e3 {[%clk 0:02:39]}  e6 {[%clk 0:01:50]} 5. d4 {[%clk 0:02:40]}  cxd4 {[%clk 0:01:51]} 6. exd4 {[%clk 0:02:40]}  d5 {[%clk 0:01:51]} 7. c5 {[%clk 0:02:40]}  Be7 {[%clk 0:01:32]} 8. Bd3 {[%clk 0:02:39]}  O-O {[%clk 0:01:32]} 9. a3 {[%clk 0:02:39]}  a5 {[%clk 0:01:31]} 10. O-O {[%clk 0:02:36]}  b6 {[%clk 0:01:31]} 11. Be3 {[%clk 0:02:31]}  bxc5 {[%clk 0:01:30]} 12. dxc5 {[%clk 0:02:31]}  e5 {[%clk 0:01:28]} 13. Bb5 {[%clk 0:02:30]}  Nd4 {[%clk 0:01:17]} 14. Nxd4 {[%clk 0:02:20]}  exd4 {[%clk 0:01:18]} 15. Bxd4 {[%clk 0:02:20]}  Qc7 {[%clk 0:01:12]} 16. Rc1 {[%clk 0:02:11]}  Be6 {[%clk 0:01:09]} 17. Qf3 {[%clk 0:01:55]}  a4 {[%clk 0:01:07]} 18. Nxa4 {[%clk 0:01:49]}  Ne4 {[%clk 0:01:06]} 19. b4 {[%clk 0:01:41]}  f5 {[%clk 0:01:02]} 20. Rfd1 {[%clk 0:01:38]}  Bg5 {[%clk 0:00:59]} 21. Rc2 {[%clk 0:01:30]}  Bf4 {[%clk 0:00:45]} 22. g3 {[%clk 0:01:30]}  Bh6 {[%clk 0:00:44]} 23. Nb6 {[%clk 0:01:29]}  Ra7 {[%clk 0:00:42]} 24. Bb2 {[%clk 0:01:23]}  f4 {[%clk 0:00:42]} 25. Nxd5 {[%clk 0:01:17]}  Bxd5 {[%clk 0:00:38]} 26. Rxd5 {[%clk 0:01:16]}  Ng5 {[%clk 0:00:14]} 27. Qb3 {[%clk 0:01:10]}  Kh8 {[%clk 0:00:13]} 28. g4 {[%clk 0:01:04]}  f3 {[%clk 0:00:12]} 29. Qc4 {[%clk 0:00:50]}  Nh3+ {[%clk 0:00:12]} 30. Kf1 {[%clk 0:00:49]}  Qxh2 {[%clk 0:00:12]} 31. Ke1 {[%clk 0:00:42]}  Qg1+ {[%clk 0:00:11]} 32. Qf1 {[%clk 0:00:41]}  Re7+ {[%clk 0:00:11]} 33. Re5 {[%clk 0:00:41]}  Rxe5+ {[%clk 0:00:05]} 34. Bxe5 {[%clk 0:00:40]}  Re8 {[%clk 0:00:05]} 35. Bxe8 {[%clk 0:00:32]}  Qxg4 {[%clk 0:00:03]} 36. Bc6 {[%clk 0:00:19]}  Qe6 {[%clk 0:00:02]} 37. Qxh3 {[%clk 0:00:14]}  Qxh3 {[%clk 0:00:02]} 38. Bxf3 {[%clk 0:00:05]}  Qxf3 {[%clk 0:00:02]} 39. c6 {[%clk 0:00:03]}  Qe4+ {[%clk 0:00:02]} 40. Kf1 {[%clk 0:00:02]}  Qxc2 {[%clk 0:00:02]} 41. c7 {[%clk 0:00:02]}  Qc6 {[%clk 0:00:03]} 0-1


[Site "https://www.chess.com"]

[Event "Titled Tuesday Blitz February 21 Late 2023"]
[White "Coelho, Ramyres Santana"]
[Black "Gamboa, Juan Pablo"]
[WhiteFideId "2120690"]
[BlackFideId "105180"]
[WhiteElo "1981"]
[BlackElo "2224"]
[Result "1-0"]
[Round "03"]
[TimeControl "180+2"]
[Date "2023.02.21"]
[WhiteClock "0:00:45"]
[BlackClock "0:00:40"]

1. e4 {[%clk 0:02:42]}  e6 {[%clk 0:02:59]} 2. d4 {[%clk 0:02:42]}  d5 {[%clk 0:03:00]} 3. Nc3 {[%clk 0:02:42]}  Bb4 {[%clk 0:02:59]} 4. e5 {[%clk 0:02:42]}  Ne7 {[%clk 0:02:59]} 5. a3 {[%clk 0:02:42]}  Bxc3+ {[%clk 0:02:59]} 6. bxc3 {[%clk 0:02:43]}  c5 {[%clk 0:03:00]} 7. Qg4 {[%clk 0:02:43]}  O-O {[%clk 0:03:00]} 8. Nf3 {[%clk 0:02:40]}  f5 {[%clk 0:03:01]} 9. exf6 {[%clk 0:02:33]}  Rxf6 {[%clk 0:03:01]} 10. Ne5 {[%clk 0:02:32]}  Nbc6 {[%clk 0:02:46]} 11. Bd3 {[%clk 0:02:29]}  c4 {[%clk 0:02:21]} 12. Be2 {[%clk 0:02:16]}  Nxe5 {[%clk 0:02:12]} 13. dxe5 {[%clk 0:02:16]}  Rf5 {[%clk 0:02:10]} 14. f4 {[%clk 0:02:14]}  d4 {[%clk 0:02:02]} 15. Bxc4 {[%clk 0:02:10]}  dxc3 {[%clk 0:01:57]} 16. Bd3 {[%clk 0:02:08]}  Qd4 {[%clk 0:01:47]} 17. Bxf5 {[%clk 0:02:01]}  exf5 {[%clk 0:01:47]} 18. Qe2 {[%clk 0:01:56]}  Nd5 {[%clk 0:01:42]} 19. Qd3 {[%clk 0:01:50]}  Qxd3 {[%clk 0:01:34]} 20. cxd3 {[%clk 0:01:51]}  b6 {[%clk 0:01:32]} 21. O-O {[%clk 0:01:26]}  Ba6 {[%clk 0:01:32]} 22. Rd1 {[%clk 0:01:26]}  c2 {[%clk 0:01:07]} 23. Rd2 {[%clk 0:01:25]}  Ne3 {[%clk 0:01:08]} 24. Re2 {[%clk 0:01:20]}  Ng4 {[%clk 0:01:04]} 25. Rxc2 {[%clk 0:01:18]}  Bxd3 {[%clk 0:01:05]} 26. Rc7 {[%clk 0:01:18]}  Rd8 {[%clk 0:00:56]} 27. Bb2 {[%clk 0:01:17]}  Be4 {[%clk 0:00:55]} 28. e6 {[%clk 0:00:59]}  Nf6 {[%clk 0:00:49]} 29. Bxf6 {[%clk 0:00:57]}  gxf6 {[%clk 0:00:49]} 30. e7 {[%clk 0:00:56]}  Re8 {[%clk 0:00:46]} 31. Rxa7 {[%clk 0:00:51]}  Kf7 {[%clk 0:00:47]} 32. Rc1 {[%clk 0:00:51]}  Rxe7 {[%clk 0:00:39]} 33. Rxe7+ {[%clk 0:00:51]}  Kxe7 {[%clk 0:00:39]} 34. Rc7+ {[%clk 0:00:52]}  Kd6 {[%clk 0:00:37]} 35. Rxh7 {[%clk 0:00:53]}  b5 {[%clk 0:00:38]} 36. Rf7 {[%clk 0:00:51]}  Kc5 {[%clk 0:00:38]} 37. Rxf6 {[%clk 0:00:51]}  Kc4 {[%clk 0:00:38]} 38. Ra6 {[%clk 0:00:49]}  Kb3 {[%clk 0:00:37]} 39. Ra7 {[%clk 0:00:48]}  Bd3 {[%clk 0:00:38]} 40. h4 {[%clk 0:00:47]}  Be2 {[%clk 0:00:37]} 41. Kf2 {[%clk 0:00:47]}  Bg4 {[%clk 0:00:37]} 42. Ke3 {[%clk 0:00:47]}  b4 {[%clk 0:00:35]} 43. axb4 {[%clk 0:00:46]}  Kxb4 {[%clk 0:00:36]} 44. Kd4 {[%clk 0:00:46]}  Kb5 {[%clk 0:00:35]} 45. Ke5 {[%clk 0:00:46]}  Kc4 {[%clk 0:00:35]} 46. Rg7 {[%clk 0:00:47]}  Kd3 {[%clk 0:00:34]} 47. Rxg4 {[%clk 0:00:47]}  fxg4 {[%clk 0:00:35]} 48. Kf5 {[%clk 0:00:46]}  g3 {[%clk 0:00:35]} 49. Kg4 {[%clk 0:00:46]}  Ke4 {[%clk 0:00:35]} 50. Kxg3 {[%clk 0:00:47]}  Kf5 {[%clk 0:00:36]} 51. Kf3 {[%clk 0:00:47]}  Kg6 {[%clk 0:00:36]} 52. g4 {[%clk 0:00:48]}  Kh6 {[%clk 0:00:37]} 53. h5 {[%clk 0:00:48]}  Kh7 {[%clk 0:00:37]} 54. Ke4 {[%clk 0:00:49]}  Kh6 {[%clk 0:00:37]} 55. Kf5 {[%clk 0:00:49]}  Kg7 {[%clk 0:00:38]} 56. Kg5 {[%clk 0:00:49]}  Kh7 {[%clk 0:00:39]} 57. h6 {[%clk 0:00:49]}  Kh8 {[%clk 0:00:39]} 58. Kg6 {[%clk 0:00:49]}  Kg8 {[%clk 0:00:39]} 59. f5 {[%clk 0:00:49]}  Kh8 {[%clk 0:00:39]} 60. f6 {[%clk 0:00:49]}  Kg8 {[%clk 0:00:40]} 61. f7+ {[%clk 0:00:46]}  Kf8 {[%clk 0:00:40]} 62. h7 {[%clk 0:00:45]} 1-0


[Site "https://www.chess.com"]

[Event "Titled Tuesday Blitz February 21 Late 2023"]
[White "Adewumi, Tanitoluwa"]
[Black "Stachanczyk, Jacek"]
[WhiteFideId "30966396"]
[BlackFideId "1116657"]
[WhiteElo "2283"]
[BlackElo "2147"]
[Result "1-0"]
[Round "03"]
[TimeControl "180+2"]
[Date "2023.02.21"]
[WhiteClock "0:00:33"]
[BlackClock "0:00:12"]

1. e4 {[%clk 0:03:00]}  c5 {[%clk 0:02:54]} 2. Nf3 {[%clk 0:03:00]}  d6 {[%clk 0:02:55]} 3. Bb5+ {[%clk 0:03:00]}  Bd7 {[%clk 0:02:54]} 4. Bxd7+ {[%clk 0:02:55]}  Qxd7 {[%clk 0:02:55]} 5. c4 {[%clk 0:02:55]}  Nf6 {[%clk 0:02:53]} 6. Nc3 {[%clk 0:02:55]}  g6 {[%clk 0:02:53]} 7. d4 {[%clk 0:02:54]}  cxd4 {[%clk 0:02:54]} 8. Nxd4 {[%clk 0:02:54]}  Bg7 {[%clk 0:02:55]} 9. f3 {[%clk 0:02:54]}  O-O {[%clk 0:02:55]} 10. Be3 {[%clk 0:02:55]}  Rc8 {[%clk 0:02:55]} 11. b3 {[%clk 0:02:48]}  a6 {[%clk 0:02:34]} 12. Na4 {[%clk 0:02:40]}  Qc7 {[%clk 0:02:21]} 13. O-O {[%clk 0:02:33]}  Nbd7 {[%clk 0:01:49]} 14. Rc1 {[%clk 0:02:30]}  Qa5 {[%clk 0:01:39]} 15. Bd2 {[%clk 0:02:24]}  Qh5 {[%clk 0:01:22]} 16. Be3 {[%clk 0:02:07]}  b5 {[%clk 0:00:56]} 17. cxb5 {[%clk 0:01:56]}  axb5 {[%clk 0:00:57]} 18. Nc3 {[%clk 0:01:49]}  b4 {[%clk 0:00:53]} 19. Na4 {[%clk 0:01:47]}  Nc5 {[%clk 0:00:53]} 20. Nb6 {[%clk 0:01:28]}  Rcb8 {[%clk 0:00:37]} 21. Nxa8 {[%clk 0:01:23]}  Rxa8 {[%clk 0:00:38]} 22. Nc6 {[%clk 0:01:19]}  Kf8 {[%clk 0:00:17]} 23. Nxb4 {[%clk 0:00:47]}  Nfd7 {[%clk 0:00:15]} 24. Nd5 {[%clk 0:00:43]}  Rxa2 {[%clk 0:00:13]} 25. b4 {[%clk 0:00:34]}  Ne6 {[%clk 0:00:12]} 26. Rc8+ {[%clk 0:00:33]} 1-0


[Site "https://www.chess.com"]